fUSD/lending_fUSD_20260610
["ID","MTS","AMOUNT","RATE_DAILY","PERIOD"]
[424730578,1781094648000,-151.0,0.00026155,2]
[424730581,1781094648000,-1842.0326633,0.00026155,2]
[424730583,1781094648000,-151.0,0.00026155,2]
[424730584,1781094648000,-1910.18787185,0.00026155,2]
[424730590,1781094648000,-151.0,0.00026155,2]
[424730591,1781094648000,-209.40437684,0.00026155,2]
[424730588,1781094648000,-152.0,0.00026155,2]
[424730589,1781094648000,-222.25838182,0.00026155,2]
[424730594,1781094648000,-152.0,0.00026155,2]
[424730597,1781094648000,-152.0,0.00026155,2]
[424730592,1781094648000,-2054.15682156,0.00026155,2]
[424730586,1781094648000,-151.0,0.00026155,2]
[424730598,1781094648000,-151.0,0.00026155,2]
[424730595,1781094648000,-151.0,0.00026155,2]
[424730608,1781094648000,-719.04747942,0.0002621,2]
[424730601,1781094648000,-152.0,0.00026155,2]
[424730605,1781094648000,-152.0,0.00026155,2]
[424730604,1781094648000,-151.0,0.00026155,2]
[424730603,1781094648000,-152.0,0.00026155,2]
[424730599,1781094648000,-152.0,0.00026155,2]
[424730600,1781094648000,-151.0,0.00026155,2]
[424730609,1781094648000,-151.0,0.0002621,2]
[424730593,1781094648000,-151.0,0.00026155,2]
[424730596,1781094648000,-151.0,0.00026155,2]
[424730602,1781094648000,-152.0,0.00026155,2]
[424730672,1781094649000,-500.0,0.00027397,7]
[424730675,1781094649000,-500.0,0.00027397,7]
[424730676,1781094649000,-500.0,0.00027397,7]
[424730674,1781094649000,-500.0,0.00027397,7]
[424730667,1781094649000,-500.0,0.00027397,7]
[424730677,1781094649000,-500.0,0.00027397,7]
[424730670,1781094649000,-500.0,0.00027397,7]
[424730669,1781094649000,-500.0,0.00027397,7]
[424730673,1781094649000,-500.0,0.00027397,7]
[424730668,1781094649000,-500.0,0.00027397,7]
[424730671,1781094649000,-500.0,0.00027397,7]
[424730683,1781094649000,-500.0,0.00027397,7]
[424730680,1781094649000,-500.0,0.00027397,7]
[424730686,1781094649000,-500.0,0.00027397,7]
[424730685,1781094649000,-500.0,0.00027397,7]
[424730687,1781094649000,-500.0,0.00027397,7]
[424730681,1781094649000,-500.0,0.00027397,7]
[424730678,1781094649000,-500.0,0.00027397,7]
[424730679,1781094649000,-500.0,0.00027397,7]
[424730688,1781094649000,-500.0,0.00027397,7]
[424730682,1781094649000,-500.0,0.00027397,7]
[424730689,1781094649000,-500.0,0.00027397,7]
[424730690,1781094649000,-500.0,0.00027397,7]
[424730662,1781094649000,-500.0,0.00027397,7]
[424730691,1781094649000,-500.0,0.00027397,7]
[424730684,1781094649000,-500.0,0.00027397,7]
[424730663,1781094649000,-500.0,0.00027397,7]
[424730648,1781094649000,-151.0,0.00027251,2]
[424730659,1781094649000,-500.0,0.00027397,7]
[424730692,1781094649000,-500.0,0.00027397,7]
[424730639,1781094649000,-151.0,0.00026703,2]
[424730643,1781094649000,-500.0,0.00027215,2]
[424730644,1781094649000,-187.78006524,0.00027251,2]
[424730638,1781094649000,-217.15233878,0.00026703,2]
[424730642,1781094649000,-647.0,0.00026768,10]
[424730641,1781094649000,-151.0,0.00026705,2]
[424730640,1781094649000,-271.27469575,0.00026705,2]
[424730646,1781094649000,-151.0,0.00027251,2]
[424730653,1781094649000,-300.0,0.00027396,10]
[424730645,1781094649000,-225.18697532,0.00027251,2]
[424730651,1781094649000,-300.0,0.00027396,10]
[424730650,1781094649000,-647.0,0.00027394,10]
[424730652,1781094649000,-300.0,0.00027396,10]
[424730649,1781094649000,-217.41178917,0.000273,30]
[424730647,1781094649000,-225.18697532,0.00027251,2]
[424730654,1781094649000,-383.36895025,0.00027397,2]
[424730655,1781094649000,-500.0,0.00027397,7]
[424730656,1781094649000,-500.0,0.00027397,7]
[424730664,1781094649000,-500.0,0.00027397,7]
[424730657,1781094649000,-500.0,0.00027397,7]
[424730666,1781094649000,-500.0,0.00027397,7]
[424730665,1781094649000,-500.0,0.00027397,7]
[424730660,1781094649000,-500.0,0.00027397,7]
[424730661,1781094649000,-500.0,0.00027397,7]
[424730658,1781094649000,-500.0,0.00027397,7]
[424730693,1781094649000,-500.0,0.00027397,7]
[424730714,1781094649000,-500.0,0.00027397,7]
[424730696,1781094649000,-500.0,0.00027397,7]
[424730725,1781094649000,-500.0,0.00027397,7]
[424730735,1781094649000,-500.0,0.00027397,7]
[424730736,1781094649000,-500.0,0.00027397,7]
[424730732,1781094649000,-500.0,0.00027397,7]
[424730733,1781094649000,-500.0,0.00027397,7]
[424730734,1781094649000,-500.0,0.00027397,7]
[424730726,1781094649000,-500.0,0.00027397,7]
[424730728,1781094649000,-500.0,0.00027397,7]
[424730727,1781094649000,-500.0,0.00027397,7]
[424730730,1781094649000,-500.0,0.00027397,7]
[424730729,1781094649000,-500.0,0.00027397,7]
[424730731,1781094649000,-500.0,0.00027397,7]
[424730737,1781094649000,-500.0,0.00027397,7]
[424730738,1781094649000,-500.0,0.00027397,7]
[424730743,1781094649000,-500.0,0.00027397,7]
[424730741,1781094649000,-500.0,0.00027397,7]
[424730739,1781094649000,-500.0,0.00027397,7]
[424730740,1781094649000,-500.0,0.00027397,7]
[424730746,1781094649000,-500.0,0.00027397,7]
[424730744,1781094649000,-500.0,0.00027397,7]
[424730742,1781094649000,-500.0,0.00027397,7]
[424730747,1781094649000,-500.0,0.00027397,7]
[424730749,1781094649000,-500.0,0.00027397,7]
[424730748,1781094649000,-500.0,0.00027397,7]
[424730694,1781094649000,-500.0,0.00027397,7]
[424730724,1781094649000,-500.0,0.00027397,7]
[424730722,1781094649000,-500.0,0.00027397,7]
[424730745,1781094649000,-500.0,0.00027397,7]
[424730720,1781094649000,-500.0,0.00027397,7]
[424730723,1781094649000,-500.0,0.00027397,7]
[424730695,1781094649000,-500.0,0.00027397,7]
[424730699,1781094649000,-500.0,0.00027397,7]
[424730697,1781094649000,-500.0,0.00027397,7]
[424730700,1781094649000,-500.0,0.00027397,7]
[424730698,1781094649000,-500.0,0.00027397,7]
[424730701,1781094649000,-500.0,0.00027397,7]
[424730712,1781094649000,-500.0,0.00027397,7]
[424730709,1781094649000,-500.0,0.00027397,7]
[424730711,1781094649000,-500.0,0.00027397,7]
[424730710,1781094649000,-500.0,0.00027397,7]
[424730707,1781094649000,-500.0,0.00027397,7]
[424730702,1781094649000,-500.0,0.00027397,7]
[424730704,1781094649000,-500.0,0.00027397,7]
[424730721,1781094649000,-500.0,0.00027397,7]
[424730703,1781094649000,-500.0,0.00027397,7]
[424730718,1781094649000,-500.0,0.00027397,7]
[424730717,1781094649000,-500.0,0.00027397,7]
[424730750,1781094649000,-500.0,0.00027397,7]
[424730715,1781094649000,-500.0,0.00027397,7]
[424730716,1781094649000,-500.0,0.00027397,7]
[424730719,1781094649000,-500.0,0.00027397,7]
[424730713,1781094649000,-500.0,0.00027397,7]
[424730708,1781094649000,-500.0,0.00027397,7]
[424730705,1781094649000,-500.0,0.00027397,7]
[424730706,1781094649000,-500.0,0.00027397,7]
[424730779,1781094650000,-202.45029977,0.00027453,2]
[424730778,1781094650000,-151.4848965,0.00027453,2]
[424730773,1781094650000,-159.78294909,0.00027453,2]
[424730772,1781094650000,-175.91436318,0.00027453,2]
[424730780,1781094650000,-180.40608669,0.00027454,2]
[424730770,1781094650000,-167.903995,0.00027453,2]
[424730774,1781094650000,-177.52560404,0.00027453,2]
[424730785,1781094650000,-500.0,0.000275,7]
[424730776,1781094650000,-171.56171484,0.00027453,2]
[424730777,1781094650000,-150.76327732,0.00027453,2]
[424730781,1781094650000,-151.24705612,0.00027454,2]
[424730783,1781094650000,-161.2147491,0.00027454,2]
[424730787,1781094650000,-2000.0,0.000275,2]
[424730771,1781094650000,-271.86373795,0.00027453,2]
[424730784,1781094650000,-179.53426733,0.00027454,2]
[424730775,1781094650000,-176.31156427,0.00027453,2]
[424730768,1781094650000,-200.78712971,0.00027453,2]
[424730753,1781094650000,-500.0,0.00027397,7]
[424730764,1781094650000,-167.53418439,0.00027453,2]
[424730786,1781094650000,-525.0,0.000275,7]
[424730757,1781094650000,-300.0,0.00027397,2]
[424730751,1781094650000,-500.0,0.00027397,7]
[424730756,1781094650000,-170.1,0.00027397,2]
[424730752,1781094650000,-500.0,0.00027397,7]
[424730754,1781094650000,-500.0,0.00027397,7]
[424730755,1781094650000,-1500.0,0.00027397,2]
[424730762,1781094650000,-194.18130592,0.00027453,2]
[424730758,1781094650000,-24856.41,0.00027397,10]
[424730760,1781094650000,-321.458608,0.00027397,2]
[424730761,1781094650000,-157.14,0.000274,7]
[424730766,1781094650000,-162.23121085,0.00027453,2]
[424730765,1781094650000,-268.05648809,0.00027453,2]
[424730763,1781094650000,-224.22132225,0.00027453,2]
[424730767,1781094650000,-160.54794585,0.00027453,2]
[424730769,1781094650000,-151.07964961,0.00027453,2]
[424730759,1781094650000,-20713.68,0.00027397,10]
[424730782,1781094650000,-169.93052837,0.00027454,2]
[424730791,1781094650000,-736.56,0.0002765,7]
[424730789,1781094650000,-154.8949609,0.00027501,2]
[424730810,1781094650000,-201.93286098,0.00028347,2]
[424730809,1781094650000,-226.9,0.00028267,2]
[424730808,1781094650000,-56304.5169174,0.00028254,2]
[424730813,1781094650000,-151.0,0.00028347,2]
[424730815,1781094650000,-2064.87,0.00028463,30]
[424730821,1781094650000,-661.8,0.00028463,2]
[424730824,1781094650000,-661.8,0.00028463,2]
[424730811,1781094650000,-151.0,0.00028347,2]
[424730822,1781094650000,-661.8,0.00028463,7]
[424730819,1781094650000,-1023.57,0.00028463,7]
[424730816,1781094650000,-2064.87,0.00028463,7]
[424730820,1781094650000,-1023.57,0.00028463,2]
[424730818,1781094650000,-1023.57,0.00028463,30]
[424730825,1781094650000,-661.8,0.00028463,7]
[424730788,1781094650000,-180.82186542,0.00027501,2]
[424730826,1781094650000,-661.8,0.00028463,30]
[424730817,1781094650000,-2064.87,0.00028463,2]
[424730814,1781094650000,-685.16,0.00028463,30]
[424730823,1781094650000,-661.8,0.00028463,30]
[424730806,1781094650000,-152.4559681,0.00028254,2]
[424730812,1781094650000,-242.15909246,0.00028347,2]
[424730792,1781094650000,-213.0,0.00027679,2]
[424730793,1781094650000,-194.72792766,0.00027799,2]
[424730794,1781094650000,-218.05361821,0.00027799,2]
[424730797,1781094650000,-151.0,0.00027799,2]
[424730796,1781094650000,-233.5188934,0.00027799,2]
[424730800,1781094650000,-284.95203121,0.00028,7]
[424730795,1781094650000,-151.0,0.00027799,2]
[424730798,1781094650000,-150.0,0.00027973,2]
[424730805,1781094650000,-150.0,0.00028153,2]
[424730801,1781094650000,-215.92376884,0.00028,7]
[424730807,1781094650000,-618.455475,0.00028254,2]
[424730803,1781094650000,-1086.55396879,0.00028025,2]
[424730790,1781094650000,-153.80113636,0.00027524,2]
[424730804,1781094650000,-500.0,0.00028032,15]
[424730802,1781094650000,-647.0,0.0002802,11]
[424730799,1781094650000,-600.0,0.00028,2]
[424730855,1781094651000,-683.84,0.00028543,2]
[424730856,1781094651000,-683.84,0.00028543,7]
[424730854,1781094651000,-683.84,0.00028543,30]
[424730858,1781094651000,-683.84,0.00028543,2]
[424730857,1781094651000,-683.84,0.00028543,30]
[424730861,1781094651000,-683.84,0.00028543,2]
[424730862,1781094651000,-683.84,0.00028543,7]
[424730859,1781094651000,-683.84,0.00028543,7]
[424730860,1781094651000,-683.84,0.00028543,30]
[424730865,1781094651000,-683.84,0.00028543,7]
[424730852,1781094651000,-683.84,0.00028543,2]
[424730867,1781094651000,-683.84,0.00028543,2]
[424730863,1781094651000,-683.84,0.00028543,30]
[424730866,1781094651000,-683.84,0.00028543,30]
[424730874,1781094651000,-1023.57,0.00028557,7]
[424730870,1781094651000,-683.84,0.00028543,2]
[424730875,1781094651000,-685.16,0.00028582,2]
[424730876,1781094651000,-2064.27,0.00028593,7]
[424730868,1781094651000,-683.84,0.00028543,7]
[424730869,1781094651000,-683.84,0.00028543,30]
[424730873,1781094651000,-2064.87,0.00028557,7]
[424730853,1781094651000,-683.84,0.00028543,7]
[424730864,1781094651000,-683.84,0.00028543,2]
[424730850,1781094651000,-684.79,0.00028543,30]
[424730833,1781094651000,-661.8,0.00028463,2]
[424730851,1781094651000,-1023.72,0.00028543,30]
[424730871,1781094651000,-683.88,0.00028543,7]
[424730834,1781094651000,-661.8,0.00028463,7]
[424730827,1781094651000,-661.8,0.00028463,2]
[424730831,1781094651000,-661.8,0.00028463,7]
[424730832,1781094651000,-661.8,0.00028463,30]
[424730829,1781094651000,-661.8,0.00028463,30]
[424730828,1781094651000,-661.8,0.00028463,7]
[424730830,1781094651000,-661.8,0.00028463,2]
[424730836,1781094651000,-661.8,0.00028463,2]
[424730835,1781094651000,-661.8,0.00028463,30]
[424730848,1781094651000,-685.16,0.00028522,7]
[424730837,1781094651000,-661.8,0.00028463,7]
[424730839,1781094651000,-661.8,0.00028463,2]
[424730840,1781094651000,-661.97,0.00028463,7]
[424730843,1781094651000,-300.0,0.00028494,10]
[424730842,1781094651000,-181.62868692,0.00028492,2]
[424730844,1781094651000,-2896.0,0.00028495,5]
[424730841,1781094651000,-1274.0,0.00028492,2]
[424730845,1781094651000,-2659.0,0.00028495,5]
[424730846,1781094651000,-2064.87,0.00028498,30]
[424730849,1781094651000,-2064.27,0.00028543,30]
[424730847,1781094651000,-1023.57,0.00028498,30]
[424730838,1781094651000,-661.8,0.00028463,30]
[424730872,1781094651000,-225.8,0.0002855,7]
[424730914,1781094651000,-302.49411224,0.0002875,2]
[424730877,1781094651000,-684.79,0.00028593,7]
[424730906,1781094651000,-355.05120808,0.00028749,2]
[424730907,1781094651000,-352.62312854,0.00028749,2]
[424730908,1781094651000,-343.12342968,0.00028749,2]
[424730909,1781094651000,-301.52655465,0.00028749,2]
[424730912,1781094651000,-404.90059954,0.00028749,2]
[424730916,1781094651000,-322.4294982,0.0002875,2]
[424730915,1781094651000,-339.86105674,0.0002875,2]
[424730913,1781094651000,-360.81217337,0.0002875,2]
[424730917,1781094651000,-359.06853467,0.0002875,2]
[424730910,1781094651000,-302.969793,0.00028749,2]
[424730903,1781094651000,-335.80799001,0.00028749,2]
[424730918,1781094651000,-257.58492655,0.00028752,2]
[424730925,1781094651000,-599.60298507,0.00028894,2]
[424730924,1781094651000,-153.80113636,0.00028893,2]
[424730921,1781094651000,-2000.0,0.000288,2]
[424730923,1781094651000,-500.0,0.00028873,17]
[424730920,1781094651000,-309.7899218,0.00028799,2]
[424730919,1781094651000,-361.64373084,0.00028799,2]
[424730926,1781094651000,-151.0,0.00028894,2]
[424730922,1781094651000,-284.95203121,0.000288,7]
[424730928,1781094651000,-209.40437684,0.00028895,2]
[424730878,1781094651000,-1023.72,0.00028593,7]
[424730927,1781094651000,-747.80937859,0.00028894,2]
[424730904,1781094651000,-543.72747591,0.00028749,2]
[424730911,1781094651000,-351.82872635,0.00028749,2]
[424730902,1781094651000,-302.15929923,0.00028749,2]
[424730905,1781094651000,-319.56589818,0.00028749,2]
[424730886,1781094651000,-684.79,0.00028695,30]
[424730880,1781094651000,-685.16,0.00028642,30]
[424730884,1781094651000,-647.0,0.00028646,11]
[424730883,1781094651000,-1023.72,0.00028644,2]
[424730882,1781094651000,-684.79,0.00028644,2]
[424730885,1781094651000,-2064.27,0.00028695,30]
[424730881,1781094651000,-2064.27,0.00028644,2]
[424730887,1781094651000,-1023.72,0.00028695,30]
[424730888,1781094651000,-685.16,0.00028701,7]
[424730890,1781094651000,-736.56,0.0002873,7]
[424730897,1781094651000,-335.06836878,0.00028749,2]
[424730879,1781094651000,-525.0,0.000286,7]
[424730901,1781094651000,-401.57425942,0.00028749,2]
[424730896,1781094651000,-448.4426445,0.00028749,2]
[424730892,1781094651000,-2064.27,0.00028746,7]
[424730891,1781094651000,-214.96808218,0.00028738,2]
[424730894,1781094651000,-1023.72,0.00028746,7]
[424730895,1781094651000,-388.36261185,0.00028749,2]
[424730893,1781094651000,-684.79,0.00028746,7]
[424730899,1781094651000,-324.46242171,0.00028749,2]
[424730898,1781094651000,-536.11297618,0.00028749,2]
[424730900,1781094651000,-321.0958917,0.00028749,2]
[424730889,1781094651000,-213.38049193,0.00028725,2]
[424730964,1781094652000,-515.0,0.00029222,30]
[424730963,1781094652000,-293.0,0.00029222,30]
[424730965,1781094652000,-255.0,0.00029222,30]
[424730968,1781094652000,-212.0,0.0002923,30]
[424730953,1781094652000,-527.39395721,0.00029,2]
[424730958,1781094652000,-152.0,0.00029173,3]
[424730959,1781094652000,-152.0,0.00029173,3]
[424730957,1781094652000,-152.0,0.00029173,3]
[424730960,1781094652000,-151.0,0.00029173,3]
[424730962,1781094652000,-890.0,0.00029222,30]
[424730961,1781094652000,-151.0,0.00029173,3]
[424730972,1781094652000,-217.0,0.0002923,30]
[424730966,1781094652000,-248.0,0.0002923,30]
[424730969,1781094652000,-735.0,0.0002923,30]
[424730971,1781094652000,-256.0,0.0002923,30]
[424730970,1781094652000,-811.0,0.0002923,30]
[424730974,1781094652000,-289.0,0.0002923,30]
[424730975,1781094652000,-249.0,0.0002923,30]
[424730973,1781094652000,-793.0,0.0002923,30]
[424730976,1781094652000,-647.0,0.00029273,12]
[424730978,1781094652000,-1650.0,0.00029409,10]
[424730977,1781094652000,-150.0,0.00029372,2]
[424730967,1781094652000,-266.0,0.0002923,30]
[424730980,1781094652000,-500.0,0.00029409,2]
[424730930,1781094652000,-251.11897888,0.00028895,2]
[424730956,1781094652000,-207.53276311,0.00029105,2]
[424730929,1781094652000,-151.0,0.00028895,2]
[424730933,1781094652000,-200.0,0.000289,2]
[424730931,1781094652000,-151.0,0.00028895,2]
[424730932,1781094652000,-200.0,0.000289,2]
[424730934,1781094652000,-350.0,0.0002897,12]
[424730937,1781094652000,-500.0,0.00029,2]
[424730936,1781094652000,-186.24909246,0.00028971,2]
[424730935,1781094652000,-167.3033954,0.00028971,2]
[424730939,1781094652000,-500.0,0.00029,2]
[424730938,1781094652000,-500.0,0.00029,2]
[424730940,1781094652000,-500.0,0.00029,2]
[424730942,1781094652000,-500.0,0.00029,2]
[424730947,1781094652000,-500.0,0.00029,2]
[424730946,1781094652000,-500.0,0.00029,2]
[424730941,1781094652000,-500.0,0.00029,2]
[424730943,1781094652000,-500.0,0.00029,2]
[424730945,1781094652000,-500.0,0.00029,2]
[424730944,1781094652000,-500.0,0.00029,2]
[424730952,1781094652000,-215.92376884,0.00029,30]
[424730950,1781094652000,-500.0,0.00029,2]
[424730949,1781094652000,-500.0,0.00029,2]
[424730948,1781094652000,-500.0,0.00029,2]
[424730951,1781094652000,-284.95203121,0.00029,30]
[424730954,1781094652000,-172.14630494,0.0002901,2]
[424730981,1781094652000,-500.0,0.00029409,2]
[424730955,1781094652000,-502.873,0.00029097,30]
[424730983,1781094652000,-500.0,0.00029409,2]
[424731010,1781094652000,-500.0,0.00029409,2]
[424731002,1781094652000,-500.0,0.00029409,2]
[424731021,1781094652000,-500.0,0.00029409,2]
[424731019,1781094652000,-500.0,0.00029409,2]
[424731015,1781094652000,-500.0,0.00029409,2]
[424731014,1781094652000,-500.0,0.00029409,2]
[424731020,1781094652000,-500.0,0.00029409,2]
[424731022,1781094652000,-500.0,0.00029409,2]
[424731017,1781094652000,-500.0,0.00029409,2]
[424731012,1781094652000,-500.0,0.00029409,2]
[424731013,1781094652000,-500.0,0.00029409,2]
[424731016,1781094652000,-500.0,0.00029409,2]
[424731024,1781094652000,-500.0,0.00029409,2]
[424731032,1781094652000,-6707.9775724,0.000295,5]
[424731025,1781094652000,-527.0,0.00029409,2]
[424731029,1781094652000,-151.0,0.00029443,2]
[424731028,1781094652000,-260.4103811,0.00029443,2]
[424731026,1781094652000,-217.15233878,0.00029443,2]
[424731023,1781094652000,-500.0,0.00029409,2]
[424731030,1781094652000,-2873.03881167,0.000295,8]
[424731027,1781094652000,-151.0,0.00029443,2]
[424731031,1781094652000,-3052.45040015,0.000295,8]
[424730979,1781094652000,-266.0,0.00029409,2]
[424731009,1781094652000,-500.0,0.00029409,2]
[424731011,1781094652000,-500.0,0.00029409,2]
[424731018,1781094652000,-500.0,0.00029409,2]
[424731006,1781094652000,-500.0,0.00029409,2]
[424731007,1781094652000,-500.0,0.00029409,2]
[424730987,1781094652000,-500.0,0.00029409,2]
[424730988,1781094652000,-500.0,0.00029409,2]
[424730986,1781094652000,-500.0,0.00029409,2]
[424730984,1781094652000,-500.0,0.00029409,2]
[424730982,1781094652000,-500.0,0.00029409,2]
[424730985,1781094652000,-500.0,0.00029409,2]
[424730991,1781094652000,-500.0,0.00029409,2]
[424730990,1781094652000,-500.0,0.00029409,2]
[424730993,1781094652000,-500.0,0.00029409,2]
[424730994,1781094652000,-500.0,0.00029409,2]
[424730996,1781094652000,-500.0,0.00029409,2]
[424730989,1781094652000,-500.0,0.00029409,2]
[424731008,1781094652000,-500.0,0.00029409,2]
[424730995,1781094652000,-500.0,0.00029409,2]
[424730999,1781094652000,-500.0,0.00029409,2]
[424730998,1781094652000,-500.0,0.00029409,2]
[424730997,1781094652000,-500.0,0.00029409,2]
[424731000,1781094652000,-500.0,0.00029409,2]
[424731001,1781094652000,-500.0,0.00029409,2]
[424731005,1781094652000,-500.0,0.00029409,2]
[424731004,1781094652000,-500.0,0.00029409,2]
[424731003,1781094652000,-500.0,0.00029409,2]
[424730992,1781094652000,-500.0,0.00029409,2]
[424731071,1781094653000,-230.67104731,0.00029613,2]
[424731069,1781094653000,-166.82082127,0.00029613,2]
[424731068,1781094653000,-452.28983197,0.00029613,2]
[424731067,1781094653000,-240.79250091,0.00029613,2]
[424731064,1781094653000,-532.57681212,0.00029613,2]
[424731061,1781094653000,-185.2604125,0.00029613,2]
[424731060,1781094653000,-205.56677579,0.00029613,2]
[424731063,1781094653000,-181.32982294,0.00029613,2]
[424731062,1781094653000,-275.66086007,0.00029613,2]
[424731074,1781094653000,-214.77983455,0.00029613,2]
[424731059,1781094653000,-479.34884727,0.00029613,2]
[424731075,1781094653000,-527.74308953,0.00029613,2]
[424731081,1781094653000,-238.04654023,0.00029615,2]
[424731072,1781094653000,-454.45468949,0.00029613,2]
[424731070,1781094653000,-205.58962839,0.00029613,2]
[424731076,1781094653000,-607.35089931,0.00029613,2]
[424731077,1781094653000,-541.21826006,0.00029615,2]
[424731079,1781094653000,-187.00532554,0.00029615,2]
[424731089,1781094653000,-185.40012574,0.00029615,2]
[424731078,1781094653000,-453.74116836,0.00029615,2]
[424731083,1781094653000,-241.2633759,0.00029615,2]
[424731088,1781094653000,-538.602802,0.00029615,2]
[424731082,1781094653000,-194.51230655,0.00029615,2]
[424731058,1781094653000,-154.30688643,0.00029613,2]
[424731073,1781094653000,-293.22826481,0.00029613,2]
[424731057,1781094653000,-815.59121386,0.00029613,2]
[424731033,1781094653000,-879.53,0.00029527,7]
[424731066,1781094653000,-514.68514451,0.00029613,2]
[424731080,1781094653000,-258.63624667,0.00029615,2]
[424731036,1781094653000,-171.3763261,0.00029613,2]
[424731043,1781094653000,-194.18605571,0.00029613,2]
[424731035,1781094653000,-3236.4101911,0.0002961,8]
[424731034,1781094653000,-970.53,0.00029527,30]
[424731042,1781094653000,-672.66396675,0.00029613,2]
[424731038,1781094653000,-233.97498709,0.00029613,2]
[424731041,1781094653000,-259.49884754,0.00029613,2]
[424731039,1781094653000,-216.37775023,0.00029613,2]
[424731040,1781094653000,-582.54391777,0.00029613,2]
[424731037,1781094653000,-239.26414617,0.00029613,2]
[424731056,1781094653000,-220.93954072,0.00029613,2]
[424731044,1781094653000,-502.60255316,0.00029613,2]
[424731047,1781094653000,-169.58866854,0.00029613,2]
[424731049,1781094653000,-486.69363256,0.00029613,2]
[424731048,1781094653000,-164.10870769,0.00029613,2]
[424731055,1781094653000,-503.71198501,0.00029613,2]
[424731052,1781094653000,-602.36138913,0.00029613,2]
[424731054,1781094653000,-453.23894884,0.00029613,2]
[424731046,1781094653000,-286.75068551,0.00029613,2]
[424731045,1781094653000,-804.16946428,0.00029613,2]
[424731053,1781094653000,-230.75552074,0.00029613,2]
[424731051,1781094653000,-241.43704184,0.00029613,2]
[424731065,1781094653000,-528.93469281,0.00029613,2]
[424731050,1781094653000,-481.64383756,0.00029613,2]
[424731087,1781094653000,-483.6442473,0.00029615,2]
[424731084,1781094653000,-253.04988814,0.00029615,2]
[424731085,1781094653000,-225.21297495,0.00029615,2]
[424731119,1781094653000,-500.1,0.0003003,2]
[424731121,1781094653000,-500.1,0.0003003,2]
[424731123,1781094653000,-500.1,0.0003003,2]
[424731122,1781094653000,-500.1,0.0003003,2]
[424731120,1781094653000,-500.1,0.0003003,2]
[424731125,1781094653000,-2000.0,0.000301,2]
[424731135,1781094653000,-480.0,0.00030137,30]
[424731124,1781094653000,-404.0,0.00030037,2]
[424731126,1781094653000,-15492.24257896,0.0003013,7]
[424731127,1781094653000,-56660.71819528,0.00030137,7]
[424731131,1781094653000,-157.69923417,0.00030137,2]
[424731130,1781094653000,-247.2095207,0.00030137,2]
[424731128,1781094653000,-170.1,0.00030137,2]
[424731129,1781094653000,-508.25,0.00030137,5]
[424731134,1781094653000,-151.16920885,0.00030137,2]
[424731133,1781094653000,-250.0,0.00030137,2]
[424731132,1781094653000,-500.0,0.00030137,3]
[424731136,1781094653000,-150.0,0.00030137,30]
[424731137,1781094653000,-181.26,0.00030137,2]
[424731139,1781094653000,-675.6,0.00030137,2]
[424731138,1781094653000,-253.2,0.00030137,2]
[424731143,1781094653000,-200.0,0.00030137,2]
[424731140,1781094653000,-570.0,0.00030137,2]
[424731086,1781094653000,-509.79158511,0.00029615,2]